bitfinex/quotes_SOLUSD_20240612
["timestamp","ask_amount","ask_price","bid_price","bid_amount"]
[1718181043634,8.31,151.48,151.46,2.4428]
[1718181044939,2.4423,151.5,151.46,2.4428]
[1718181045155,8.31,151.48,151.46,2.4428]
[1718181045760,2.6121,151.51,151.46,2.4428]
[1718181046052,8.31,151.49,151.47,2.4426]
[1718181046251,8.31,151.49,151.46,2.4427]
[1718181046979,8.31,151.49,151.45,2.4429]
[1718181047366,10.7524,151.49,151.45,2.4429]
[1718181049471,8.31,151.48,151.45,2.4429]
[1718181050179,8.31,151.48,151.46,2.4428]
[1718181050365,2.4422,151.5,151.46,2.4428]
[1718181050981,8.31,151.48,151.45,2.4429]
[1718181051576,2.4423,151.5,151.46,2.4428]
[1718181051766,8.31,151.49,151.46,2.4428]
[1718181052584,8.31,151.49,151.44,4.8863]
[1718181052585,2.4421,151.51,151.44,7.3296]
[1718181052880,10.7521,151.51,151.47,2.4426]
[1718181053596,2.4419,151.52,151.48,2.4424]
[1718181053875,7.3252,151.54,151.49,2.4423]
[1718181053876,2.4418,151.53,151.49,2.4423]
[1718181054083,2.4416,151.54,151.5,2.4422]
[1718181054254,2.4415,151.55,151.49,13.1946]
[1718181054578,2.4416,151.54,151.5,2.4421]
[1718181054777,10.7515,151.55,151.5,2.4421]
[1718181055075,2.4416,151.54,151.5,2.4421]
[1718181055482,10.7514,151.55,151.51,2.442]
[1718181055778,10.7514,151.55,151.5,2.4421]
[1718181057467,2.4416,151.54,151.5,2.4421]
[1718181058287,2.4414,151.55,151.51,2.442]
[1718181058451,2.4414,151.55,151.51,3.76181439]
[1718181058770,2.4414,151.55,151.52,1.31972728]
[1718181059274,2.4414,151.55,151.51,1.31981381]
[1718181060057,2.4414,151.55,151.51,3.76181381]
[1718181060263,2.4414,151.55,151.52,1.3197267]
[1718181060475,2.4416,151.54,151.5,10.7521]
[1718181061184,2.4416,151.54,151.5,2.4421]
[1718181061859,10.7515,151.55,151.51,2.442]
[1718181062962,8.31,151.55,151.52,2.4419]
[1718181063186,4.8822,151.58,151.52,2.4419]
[1718181063373,8.31,151.57,151.51,13.1941]
[1718181063683,2.441,151.58,151.54,2.4415]
[1718181063880,10.751,151.58,151.54,2.4415]
[1718181064185,2.441,151.58,151.54,2.4415]
[1718181064760,10.751,151.58,151.54,2.4415]
[1718181066584,2.4408,151.59,151.55,2.4414]
[1718181066776,10.751,151.58,151.54,2.4414]
[1718181067686,10.7511,151.57,151.53,2.4416]
[1718181067873,8.31,151.56,151.5,4.8842]
[1718181068075,8.31,151.55,151.52,2.4419]
[1718181068377,2.4414,151.55,151.51,2.442]
[1718181068688,2.4414,151.55,151.5,4.8842]
[1718181068689,2.4416,151.54,151.5,2.4421]
[1718181068881,8.31,151.53,151.5,2.4421]
[1718181069573,8.31,151.52,151.49,16.1679]
[1718181069888,8.31,151.52,151.49,2.4423]
[1718181070185,8.31,151.52,151.5,2.4422]
[1718181071499,8.31,151.52,151.51,2.442]
[1718181072270,8.31,151.52,151.5,2.4421]
[1718181072581,8.31,151.52,151.49,4.8847]
[1718181072582,8.31,151.52,151.49,2.4423]
[1718181073182,8.31,151.52,151.5,2.4422]
[1718181075174,8.31,151.51,151.48,2.4424]
[1718181075372,8.31,151.5,151.48,2.4424]
[1718181075569,8.31,151.51,151.48,2.4424]
[1718181076002,8.31,151.51,151.49,2.4423]
[1718181076372,8.31,151.51,151.5,2.4422]
[1718181078988,8.31,151.51,151.49,2.4423]
[1718181079396,10.7522,151.51,151.45,30.0063]
[1718181079694,8.31,151.5,151.47,2.4426]
[1718181080482,8.31,151.5,151.48,2.4425]
[1718181081604,8.31,151.51,151.49,2.4424]
[1718181081779,8.31,151.51,151.47,4.8852]
[1718181081981,2.4419,151.52,151.48,2.4425]
[1718181082174,8.31,151.51,151.47,7.328]
[1718181082491,8.31,151.51,151.48,2.4424]
[1718181082907,8.31,151.51,151.49,2.4423]
[1718181083093,8.31,151.51,151.5,2.4422]
[1718181083712,8.31,151.51,151.49,2.4422]
[1718181089998,2.4418,151.53,151.49,2.4422]
[1718181090197,8.31,151.52,151.49,2.4422]
[1718181092315,8.31,151.52,151.5,2.4422]
[1718181092522,2.4417,151.54,151.5,2.4422]
[1718181092700,8.31,151.53,151.5,2.4422]
[1718181093020,10.7517,151.53,151.5,2.4422]
[1718181093203,8.31,151.53,151.48,4.885]
[1718181093405,8.31,151.53,151.5,2.4421]
[1718181094608,2.4416,151.54,151.5,2.4421]
[1718181094909,8.31,151.53,151.5,2.4421]
[1718181096623,2.4415,151.55,151.51,2.442]
[1718181096803,2.4416,151.54,151.5,2.4421]
[1718181097323,10.7516,151.54,151.5,2.4421]
[1718181097517,2.4414,151.55,151.51,2.442]
[1718181097822,10.7516,151.54,151.5,2.4421]
[1718181098526,8.31,151.54,151.51,2.442]
[1718181099203,10.7515,151.55,151.51,2.442]
[1718181099925,15.3556,151.56,151.52,2.4419]
[1718181099926,17.7969,151.56,151.52,2.4419]
[1718181100100,17.7969,151.56,151.5,12.2109]
[1718181100101,10.7514,151.55,151.51,2.4419]
[1718181100803,2.4414,151.55,151.52,2.4419]
[1718181101123,10.7513,151.56,151.52,2.4419]
[1718181102125,2.4413,151.56,151.52,2.4419]
[1718181102320,8.31,151.55,151.52,2.4419]
[1718181103997,8.31,151.55,151.53,2.4417]
[1718181104718,8.31,151.56,151.53,2.4417]
[1718181105799,2.4411,151.57,151.53,2.4417]
[1718181106120,2.4411,151.57,151.51,20.5202]
[1718181106121,10.751,151.58,151.54,2.4415]
[1718181106628,2.4408,151.59,151.55,2.4413]
[1718181106809,10.7508,151.59,151.55,2.4413]
[1718181107003,2.4409,151.58,151.54,2.4414]
[1718181107326,10.7512,151.57,151.53,2.4417]
[1718181107532,8.31,151.56,151.53,2.4417]
[1718181107710,10.7512,151.57,151.53,2.4417]
[1718181108019,8.31,151.57,151.51,13.1941]
[1718181108210,2.4412,151.56,151.52,2.4418]
[1718181108410,10.7512,151.57,151.53,2.4417]
[1718181109930,2.4412,151.57,151.53,2.4417]
[1718181110106,10.7512,151.57,151.53,2.4417]
[1718181110910,8.31,151.58,151.55,2.4413]
[1718181111530,2.4407,151.6,151.56,2.4411]
[1718181111703,10.7507,151.6,151.56,2.4411]
[1718181111902,13.1913,151.6,151.5,15.7152]
[1718181112100,8.31,151.58,151.55,2.4413]
[1718181112323,10.7509,151.58,151.54,2.4414]
[1718181113033,8.31,151.57,151.52,4.8838]
[1718181113229,8.31,151.57,151.54,2.4415]
[1718181113421,2.441,151.58,151.54,2.4415]
[1718181113626,8.31,151.57,151.54,2.4415]
[1718181118131,8.31,151.57,151.52,20.5195]
[1718181118319,8.31,151.57,151.55,2.4414]
[1718181118718,8.31,151.58,151.55,2.4414]
[1718181119224,4.8812,151.6,151.56,2.4412]
[1718181119225,2.4406,151.6,151.56,2.4412]
[1718181119424,4.8806,151.62,151.55,4.8827]
[1718181119628,8.31,151.6,151.57,2.441]
[1718181120331,8.31,151.59,151.53,20.5184]
[1718181120535,10.7508,151.59,151.55,2.4413]
[1718181121241,10.7508,151.59,151.56,2.4412]
[1718181121940,8.31,151.59,151.56,2.4412]
[1718181122423,10.7507,151.59,151.56,2.4412]
[1718181122740,14.6421,151.62,151.57,2.441]
[1718181122942,8.31,151.6,151.57,2.441]
[1718181123725,8.31,151.6,151.56,4.8825]
[1718181124051,37.6786,151.64,151.6,2.4406]
[1718181124052,18.9389,151.64,151.6,2.4406]
[1718181124414,27.2489,151.64,151.6,2.4406]
[1718181124822,8.31,151.63,151.58,8.31]
[1718181125023,10.7502,151.63,151.59,2.4407]
[1718181125220,10.7502,151.63,151.6,2.4405]
[1718181125221,8.31,151.63,151.6,2.4405]
[1718181125433,2.4399,151.64,151.6,2.4405]
[1718181125626,10.7499,151.64,151.6,2.4405]
[1718181126242,2.4399,151.65,151.61,2.4404]
[1718181126450,10.7499,151.65,151.61,2.4404]
[1718181128751,10.7497,151.66,151.62,2.4403]
[1718181129747,2.4398,151.65,151.62,2.4403]
[1718181131139,10.7497,151.66,151.62,2.4403]
[1718181131374,10.7499,151.65,151.61,2.4403]
[1718181131648,20.577,151.68,151.61,4.8809]
[1718181131833,8.31,151.66,151.63,2.4401]
[1718181132534,10.7496,151.66,151.63,2.4401]
[1718181132742,10.7495,151.67,151.63,2.44]
[1718181135249,2.4395,151.67,151.64,2.4399]
[1718181135440,8.31,151.67,151.64,2.4399]
[1718181136258,10.7495,151.67,151.64,2.4399]
[1718181136450,10.7495,151.67,151.63,2.44]
[1718181136750,10.7495,151.67,151.64,2.4399]
[1718181136751,8.31,151.67,151.64,2.4399]
[1718181136956,10.7495,151.67,151.63,2.44]
[1718181137664,10.7496,151.67,151.63,2.44]
[1718181138283,2.4396,151.66,151.63,2.44]
[1718181138956,2.4396,151.66,151.62,2.4402]
[1718181139162,2.4399,151.64,151.61,2.4403]
[1718181139369,4.8793,151.66,151.56,15.4065]
[1718181139370,0.17,151.66,151.56,15.4065]
[1718181139569,0.17,151.66,151.53,2.4416]
[1718181139570,8.31,151.58,151.53,2.4416]
[1718181139740,2.4409,151.58,151.54,2.4415]
[1718181140068,5.0498,151.65,151.55,8.31]
[1718181140368,8.31,151.61,151.57,17.0876]
[1718181140568,8.31,151.61,151.55,15.6339]
[1718181140739,8.31,151.6,151.57,2.441]
[1718181141566,2.4409,151.59,151.54,2.4414]
[1718181141868,10.7509,151.58,151.54,2.4414]
[1718181142441,10.7511,151.57,151.53,2.4416]
[1718181143151,8.31,151.57,151.54,2.4415]
[1718181143763,8.31,151.57,151.52,15.4065]
[1718181143963,8.31,151.57,151.53,2.4416]
[1718181144147,8.31,151.57,151.51,26.7396]
[1718181144148,2.4415,151.55,151.51,2.442]
[1718181144356,10.7515,151.55,151.51,2.442]
[1718181144657,8.31,151.54,151.51,2.442]
[1718181145244,8.31,151.53,151.48,15.423]
[1718181145441,8.31,151.53,151.47,6.6392]
[1718181145664,8.31,151.52,151.48,7.3276]
[1718181145877,8.31,151.53,151.51,2.442]
[1718181146242,8.31,151.53,151.49,4.8847]
[1718181146460,10.7517,151.53,151.49,2.4423]
[1718181146783,8.31,151.53,151.51,2.4419]
[1718181147245,8.31,151.53,151.49,2.4423]
[1718181147450,8.31,151.52,151.48,4.885]
[1718181147767,8.31,151.52,151.5,2.4421]
[1718181148363,8.31,151.52,151.51,2.442]
[1718181148672,8.31,151.53,151.51,2.442]
[1718181148971,8.31,151.54,151.52,2.4418]
[1718181149670,8.31,151.54,151.52,2.4419]
[1718181149852,8.31,151.54,151.51,2.442]
[1718181150747,8.31,151.54,151.49,20.5217]
[1718181151071,8.31,151.55,151.52,2.4418]
[1718181151459,0.17,151.59,151.5,17.0951]
[1718181151676,2.4412,151.56,151.52,2.4418]
[1718181151971,8.31,151.55,151.52,2.4418]
[1718181153257,4.8819,151.58,151.51,4.8841]
[1718181153472,8.31,151.55,151.52,2.4418]
[1718181153776,10.7512,151.56,151.52,2.4418]
[1718181154349,10.7514,151.55,151.51,2.442]
[1718181154573,2.4414,151.55,151.51,2.442]
[1718181154774,10.7514,151.55,151.51,2.442]
[1718181155777,8.31,151.54,151.51,2.442]
[1718181156177,10.7516,151.54,151.5,2.4421]
[1718181156672,8.31,151.55,151.52,2.4418]
[1718181157048,4.8819,151.58,151.51,4.8841]
[1718181157249,8.31,151.56,151.53,2.4417]
[1718181157680,8.31,151.55,151.52,2.4418]
[1718181159469,2.4413,151.56,151.52,2.4418]
[1718181159675,8.31,151.55,151.52,2.4418]
[1718181161384,8.31,151.55,151.53,2.4417]
[1718181161774,8.31,151.56,151.53,2.4417]
[1718181163479,10.7513,151.56,151.52,3.76150352]
[1718181163860,10.7513,151.56,151.52,2.4418]
[1718181164059,8.31,151.55,151.52,2.4418]
[1718181164887,120.32,151.59,151.48,4.8848]
[1718181165070,8.31,151.52,151.5,2.4422]
[1718181165579,8.31,151.52,151.49,2.4423]
[1718181165884,8.31,151.52,151.5,2.4421]
[1718181166778,8.31,151.53,151.5,4.8844]
[1718181166973,8.31,151.53,151.52,2.4419]
[1718181167171,8.31,151.54,151.52,2.4419]
[1718181167675,2.4415,151.55,151.52,2.4419]
[1718181167869,8.31,151.54,151.52,2.4419]
[1718181168381,2.4415,151.55,151.52,2.4419]
[1718181168575,8.31,151.54,151.52,2.4419]
[1718181168977,2.4415,151.55,151.51,2.4419]
[1718181169184,8.31,151.54,151.52,2.4419]
[1718181169877,8.31,151.54,151.51,2.4419]
[1718181170678,4.8818,151.59,151.51,9.7679]
[1718181170881,8.31,151.57,151.54,2.4415]
[1718181171185,28.4597,151.6,151.54,2.4415]
[1718181171186,6.4936,151.6,151.54,4.8831]
[1718181171391,15.2952,151.61,151.55,6.20229488]
[1718181171568,15.2952,151.61,151.56,2.4411]
[1718181171569,10.7506,151.6,151.56,2.4411]
[1718181171773,8.31,151.6,151.57,2.441]
[1718181172378,2.4406,151.6,151.56,2.4411]
[1718181172776,10.7506,151.6,151.56,2.4411]
[1718181176670,8.31,151.6,151.57,2.441]
[1718181176991,10.7506,151.6,151.56,2.4411]
[1718181177179,10.7508,151.59,151.55,2.4413]
[1718181177490,4.8809,151.61,151.53,26.7256]
[1718181177491,8.31,151.57,151.54,2.4415]
[1718181178673,8.31,151.57,151.55,2.4414]
[1718181179262,8.31,151.57,151.54,2.4414]
[1718181179465,4.8823,151.57,151.5,4.8843]
[1718181179667,8.31,151.53,151.52,2.4418]
[1718181180286,8.31,151.54,151.52,2.4418]
[1718181180482,8.31,151.54,151.53,2.4417]
[1718181180689,8.31,151.55,151.54,2.4415]
[1718181180908,21.4387,151.59,151.54,2.4415]
[1718181180909,8.31,151.56,151.54,2.4415]
[1718181181411,2.441,151.58,151.54,2.4415]
[1718181181412,8.31,151.57,151.54,2.4415]
[1718181181589,4.881,151.61,151.53,7.3252]
[1718181181787,8.31,151.57,151.55,2.4413]
[1718181182384,8.31,151.57,151.54,2.4415]
[1718181185811,8.31,151.57,151.55,2.4414]
[1718181186711,8.31,151.57,151.54,2.4415]
[1718181187814,2.4407,151.59,151.55,2.4412]
[1718181188308,8.31,151.57,151.55,2.4412]
[1718181188708,8.31,151.57,151.54,2.4414]
[1718181190411,10.7511,151.57,151.53,2.4416]
[1718181190917,10.7511,151.57,151.54,2.4415]
[1718181191300,8.31,151.57,151.54,2.4415]
[1718181194693,21.966,151.6,151.5,8.31]
[1718181194694,8.31,151.56,151.5,8.31]
[1718181195020,8.31,151.56,151.52,2.4418]
[1718181195021,8.31,151.55,151.52,2.4418]
[1718181195230,2.4411,151.57,151.53,2.4416]
[1718181195444,8.31,151.55,151.53,2.4416]
[1718181196610,2.441,151.58,151.54,2.4415]
[1718181196806,8.31,151.55,151.54,2.4415]
[1718181197108,8.31,151.55,151.52,12.2095]
[1718181197109,8.31,151.55,151.52,2.4418]
[1718181197314,8.31,151.55,151.46,6.1762]
[1718181197315,116.236,151.58,151.44,12.2042]
[1718181197528,8.31,151.51,151.5,2.4421]
[1718181197903,2.4415,151.55,151.51,2.442]
[1718181198123,8.31,151.53,151.51,2.442]
[1718181201912,8.31,151.54,151.52,2.4419]
[1718181202528,8.31,151.54,151.48,8.31]
[1718181202529,10.7515,151.54,151.48,20.5225]
[1718181202706,4.8825,151.56,151.5,2.4421]
[1718181202707,8.31,151.53,151.5,2.4421]
[1718181203030,8.31,151.52,151.49,2.4423]
[1718181204722,8.31,151.52,151.5,2.4422]
[1718181205524,8.31,151.52,151.45,9.7718]
[1718181205830,8.31,151.5,151.48,2.4425]
[1718181208835,15.5722,151.53,151.47,7.3281]
[1718181209007,2.4419,151.52,151.49,2.4423]
[1718181209211,8.31,151.51,151.49,2.4423]
[1718181210346,9.936,151.55,151.48,12.2125]
[1718181210531,8.31,151.52,151.5,2.4422]
[1718181210731,8.31,151.52,151.49,2.4423]
[1718181210732,10.7519,151.52,151.49,2.4423]
[1718181210939,10.7521,151.51,151.48,2.4424]
[1718181211143,8.31,151.51,151.49,2.4423]
[1718181211640,8.31,151.52,151.5,2.4422]
[1718181211829,10.7518,151.53,151.5,2.4422]
[1718181212729,8.31,151.52,151.5,2.4422]
[1718181212934,10.7519,151.52,151.49,2.4423]
[1718181213239,2.4421,151.51,151.48,2.4424]
[1718181213643,10.752,151.52,151.49,2.4423]
[1718181214949,2.442,151.52,151.49,2.4423]
[1718181215153,10.752,151.52,151.49,2.4423]
[1718181215633,10.7518,151.53,151.5,2.4422]
[1718181216541,2.4415,151.55,151.51,2.4419]
[1718181216757,10.7517,151.53,151.5,2.4421]
[1718181217859,10.7519,151.52,151.49,2.4423]
[1718181220558,2.4421,151.51,151.48,2.4425]
[1718181220862,10.7521,151.51,151.48,2.4425]
[1718181221052,8.31,151.51,151.48,2.4425]
[1718181221235,2.442,151.51,151.48,2.4425]
[1718181223851,10.752,151.51,151.48,2.4425]
[1718181224266,8.31,151.51,151.49,2.4423]
[1718181224965,2.442,151.52,151.49,2.4423]
[1718181225260,8.31,151.51,151.49,2.4423]
[1718181225457,17.2602,151.55,151.48,12.2125]
[1718181225664,10.7519,151.52,151.49,2.4423]
[1718181226543,2.4418,151.53,151.5,2.4421]
[1718181226741,10.7518,151.53,151.5,2.4421]
[1718181227351,8.31,151.53,151.49,4.8847]
[1718181227657,10.7517,151.53,151.5,2.4421]
[1718181229367,8.31,151.53,151.51,2.442]
[1718181229957,10.7517,151.53,151.5,2.4421]
[1718181231555,12.2067,151.56,151.5,4.8844]
[1718181231760,10.7516,151.54,151.51,2.442]
[1718181233081,18.3914,151.57,151.54,2.4415]
[1718181233377,26.7014,151.57,151.54,2.4415]
[1718181233669,18.3914,151.57,151.54,2.4415]
[1718181234047,18.3914,151.57,151.53,2.4416]
[1718181234580,18.3914,151.57,151.53,3.76020797]
[1718181234872,26.7014,151.57,151.53,3.76020797]
[1718181235375,18.3914,151.57,151.54,2.4415]
[1718181235580,8.31,151.58,151.53,4.8835]
[1718181235882,10.751,151.58,151.54,2.4414]
[1718181236673,10.7509,151.59,151.56,2.4412]
[1718181236980,2.4408,151.59,151.56,2.4412]
[1718181237856,268.9507,151.6,151.56,2.4412]
[1718181239860,2.4408,151.59,151.56,2.4412]
[1718181240675,2.4411,151.57,151.54,2.4415]
[1718181240856,10.7511,151.57,151.54,2.4415]
[1718181241056,8.31,151.57,151.54,2.4415]
[1718181241278,8.31,151.58,151.54,2.4415]
[1718181241475,10.751,151.58,151.54,2.4415]
[1718181242161,2.441,151.58,151.55,2.4414]
[1718181243572,10.7508,151.59,151.55,2.4414]
[1718181244676,10.7508,151.59,151.53,20.5187]
[1718181244677,8.31,151.59,151.54,7.3247]
[1718181244979,268.9507,151.6,151.57,2.441]
[1718181246586,258.2,151.6,151.55,8.31]
[1718181246875,258.2,151.6,151.59,2.4407]
[1718181247272,258.2,151.6,151.58,2.4408]
[1718181247964,258.2,151.6,151.57,4.8821]
[1718181247965,258.2,151.6,151.57,2.441]
[1718181249667,258.2,151.6,151.58,2.4409]
[1718181251660,258.2,151.6,151.57,4.8821]
[1718181251859,258.2,151.6,151.58,2.4409]
[1718181252153,11.56,151.59,151.58,2.4409]
[1718181253185,11.56,151.59,151.57,2.441]
[1718181254164,11.56,151.59,151.54,4.8831]
[1718181254361,11.56,151.59,151.51,2.442]
[1718181254362,13.1926,151.56,151.51,2.442]
[1718181254565,2.4415,151.55,151.52,2.4418]
[1718181254774,10.7513,151.56,151.52,2.4418]
[1718181255087,10.7513,151.56,151.53,2.4417]
[1718181255286,2.4411,151.57,151.54,2.4415]
[1718181255491,2.441,151.58,151.54,2.4415]
[1718181255706,8.31,151.56,151.54,2.4415]
[1718181256001,9.7638,151.58,151.5,4.8841]
[1718181256194,8.31,151.54,151.51,2.442]
[1718181256692,8.31,151.54,151.52,2.4418]
[1718181257002,2.4413,151.56,151.53,2.4417]
[1718181257171,8.31,151.54,151.53,2.4417]
[1718181257372,8.31,151.55,151.53,2.4417]
[1718181257688,8.31,151.55,151.52,2.4418]
[1718181257873,8.31,151.55,151.53,2.4417]
[1718181259190,8.31,151.55,151.51,12.2102]
[1718181259394,8.31,151.56,151.54,2.4415]
[1718181260590,8.31,151.56,151.53,2.4417]
[1718181260791,10.7512,151.56,151.53,2.4417]
[1718181261900,10.7512,151.56,151.51,4.8841]
[1718181262182,8.31,151.54,151.52,2.4419]
[1718181263589,8.31,151.54,151.53,2.4417]
[1718181263797,8.31,151.55,151.53,2.4417]
[1718181264692,2.4418,151.53,151.5,2.4422]
[1718181264874,8.31,151.52,151.5,2.4422]
[1718181265375,2.4418,151.53,151.51,2.442]
[1718181265376,8.31,151.53,151.51,2.442]
[1718181265895,8.31,151.53,151.52,2.4419]
[1718181267093,8.31,151.53,151.51,2.4419]
[1718181269603,8.31,151.54,151.5,4.8844]
[1718181269808,8.31,151.54,151.52,2.4419]
[1718181270297,10.7515,151.55,151.52,2.4419]
[1718181271194,11.56,151.59,151.48,8.31]
[1718181271385,16.4416,151.59,151.54,2.4414]
[1718181271585,8.31,151.55,151.53,2.4416]
[1718181271787,10.7514,151.55,151.52,2.4418]
[1718181272398,8.31,151.55,151.53,2.4417]
[1718181272818,11.56,151.59,151.55,2.4413]
[1718181272982,11.56,151.59,151.53,4.8834]
[1718181272983,22.3108,151.59,151.56,2.4411]
[1718181273186,19.87,151.59,151.54,20.5177]
[1718181273387,11.56,151.59,151.56,2.4411]
[1718181273594,11.56,151.59,151.55,15.6342]
[1718181273794,11.56,151.59,151.57,2.4411]
[1718181274102,11.56,151.59,151.57,2.4409]
[1718181275484,11.56,151.59,151.55,2.4413]
[1718181275485,22.3108,151.59,151.55,2.4413]
[1718181275886,22.3108,151.59,151.56,2.4412]
[1718181276084,19.87,151.59,151.56,2.4412]
[1718181276491,22.3108,151.59,151.56,2.4412]
[1718181278307,19.87,151.59,151.56,2.4412]
[1718181278697,19.87,151.59,151.55,9.7655]
[1718181278905,11.56,151.59,151.58,2.4409]
[1718181281207,11.56,151.59,151.56,12.2061]
[1718181281208,14.0008,151.59,151.56,2.4411]
[1718181281411,19.87,151.59,151.56,2.4411]
[1718181282410,22.3108,151.59,151.56,2.4411]
[1718181283709,8.31,151.58,151.56,2.4411]
[1718181283902,8.31,151.57,151.55,2.4413]
[1718181284399,8.31,151.57,151.56,2.4412]
[1718181286608,10.7511,151.57,151.54,2.4415]
[1718181286795,8.31,151.55,151.54,2.4415]
[1718181286995,23.764,151.59,151.55,2.4414]
[1718181286996,8.31,151.56,151.55,2.4414]
[1718181288305,8.31,151.57,151.55,2.4414]
[1718181289411,22.3108,151.59,151.57,2.4411]
[1718181289621,11.56,151.59,151.57,2.4411]
[1718181289796,19.87,151.59,151.55,4.8828]
[1718181290107,14.0008,151.59,151.56,2.4412]
[1718181290315,8.31,151.58,151.56,2.4412]
[1718181290495,11.56,151.59,151.57,2.4411]
[1718181290697,22.3107,151.59,151.56,2.4411]
[1718181290904,8.31,151.58,151.56,2.4411]
[1718181291918,10.7509,151.58,151.55,2.4413]
[1718181292409,8.31,151.58,151.56,2.4411]
[1718181293718,10.7509,151.58,151.55,2.4413]
[1718181294795,8.31,151.57,151.55,2.4413]
[1718181296622,10.7511,151.57,151.54,2.4415]
[1718181297406,10.7511,151.57,151.55,2.4414]
[1718181297623,8.31,151.57,151.55,2.4414]
[1718181298422,8.31,151.56,151.55,2.4414]
[1718181299515,8.31,151.57,151.55,2.4414]
[1718181300217,10.7511,151.57,151.54,2.4414]
[1718181300421,8.31,151.55,151.52,12.2094]
[1718181300601,8.31,151.55,151.54,2.4415]
[1718181302127,8.31,151.55,151.53,2.4416]
[1718181302325,8.31,151.54,151.53,2.4416]
[1718181308729,2.4411,151.57,151.52,7.3257]
[1718181308933,8.31,151.55,151.54,2.4414]
[1718181311040,8.31,151.55,151.53,2.4416]
[1718181313664,10.7514,151.55,151.53,2.4416]
[1718181313959,10.7514,151.55,151.52,2.4418]
[1718181314337,10.7514,151.55,151.53,2.4417]
[1718181314538,10.7514,151.55,151.52,2.4418]
[1718181316861,2.442,151.52,151.49,2.4423]
[1718181317160,10.752,151.52,151.49,2.4423]
[1718181317538,36.686,151.58,151.46,22.5282]
[1718181317539,8.31,151.51,151.46,22.5282]
[1718181317755,10.7521,151.51,151.48,2.4424]
[1718181318136,10.7521,151.51,151.49,2.4423]
[1718181318542,8.31,151.51,151.49,2.4423]
[1718181318957,8.31,151.5,151.48,2.4424]
[1718181319158,8.31,151.5,151.49,2.4424]
[1718181321575,2.4424,151.49,151.46,2.4428]
[1718181321769,8.31,151.48,151.45,2.4429]
[1718181321949,8.31,151.48,151.46,2.4428]
[1718181322142,8.31,151.48,151.45,2.4429]
[1718181322350,8.31,151.48,151.46,2.4428]
[1718181322651,25.5742,151.52,151.47,2.4427]
[1718181322652,2.4423,151.5,151.47,2.4427]
[1718181323666,2.4423,151.5,151.46,2.4427]
[1718181324378,2.4424,151.49,151.46,2.4427]
[1718181326469,2.4424,151.49,151.45,2.4429]
[1718181327758,2.4424,151.49,151.46,2.4428]
[1718181329469,2.4425,151.48,151.45,2.4429]
[1718181331268,2.4425,151.49,151.46,2.4428]
[1718181331667,8.31,151.5,151.48,2.4424]
[1718181332756,8.31,151.5,151.47,2.4426]
[1718181332951,10.7522,151.5,151.47,2.4426]